Cogmind - Beta 10.2 @@@ ROGUE MODE // 2021.03.09 @ 14:09:24 // Winter2019/RPGLIKE Player: Yanriel Result: Destroyed self via exploding Nuclear Reactor Performance ------------- Evolutions (2) 1000 Regions Visited (5) 1000 Robots Destroyed (68) 340 Value Destroyed (2163) 2163 Prototype IDs (0) 0 Alien Tech Used (0) 0 Bonus (49) 49 TOTAL SCORE: 4552 Bonus ------- High Alert Combat Kills 49 Cogmind --------- Core Integrity 0/1000 Matter 270/300 Energy 59/125 System Corruption 0% Temperature Cool (0) Movement Rolling (100) Location -8/Materials Parts ------- > --- POWER (1) -------- Light Ion Engine > --- PROPULSION (1) --- Compact Wheel > --- UTILITY (9) ------ Structural Scanner Improved Terrain Scanner Advanced Targeting Computer > --- WEAPON (1) ------- Shock Bomb Launcher > --- INVENTORY (0) ---- (None) Peak State ------------ > --- POWER ------------ Light Ion Engine > --- PROPULSION ------- Compact Wheel > --- UTILITY ---------- Structural Scanner Improved Terrain Scanner Advanced Targeting Computer > --- WEAPON ----------- Shock Bomb Launcher > --- INVENTORY -------- (None) [Rating: 11] Favorites ----------- Power Ion Engine Engine Ion Engine Propulsion Wheel Leg Makeshift Leg Wheel Wheel Hover Unit Hover Unit Utility Improved Terrain Scanner Device Improved Terrain Scanner Processor Advanced Targeting Computer Weapon Grenade Launcher Energy Gun Heavy EM Pulse Gun Ballistic Gun Assault Rifle Ballistic Cannon Light Cannon Launcher Grenade Launcher Impact Weapon Heavy Flail Build | -11 -10 -10 -10 -9 -8 ------- Run | Scr Mat Min Exi Min Mat Slots Evolved 8 | . 1 . . . 7 Power . | . . . . . . Propulsion . | . . . . . . Utility 8 | . 1 . . . 7 Weapon . | . . . . . . Parts Attached 28 | 4 17 . 1 3 3 Power 5 | 1 3 . . 1 . Engine 5 | 1 3 . . 1 . Core . | . . . . . . Reactor . | . . . . . . Propulsion 10 | 1 7 . 1 1 . Treads . | . . . . . . Leg 1 | . . . 1 . . Wheel 5 | 1 3 . . 1 . Hover 4 | . 4 . . . . Flight . | . . . . . . Utility 3 | 1 1 . . . 1 Device 2 | 1 1 . . . . Storage . | . . . . . . Processor 1 | . . . . . 1 Hackware . | . . . . . . Protection . | . . . . . . Artifact . | . . . . . . Weapon 10 | 1 6 . . 1 2 Energy Gun 3 | 1 2 . . . . Energy Cannon . | . . . . . . Ballistic Gun 3 | . 3 . . . . Ballistic Cannon 1 | . . . . 1 . Launcher 2 | . 1 . . . 1 Special Weapon . | . . . . . . Impact Weapon 1 | . . . . . 1 Slashing Weapon . | . . . . . . Piercing Weapon . | . . . . . . Special Melee Weapon . | . . . . . . Unidentified Prototypes . | . . . . . . Parts Lost 3 | . 2 . . 1 . Power 1 | . 1 . . . . Propulsion . | . . . . . . Utility . | . . . . . . Weapon 2 | . 1 . . 1 . Highest Loss Streak 1 | . 1 . . 1 . Average Slot Usage (%) 96 | . 98 100 100 89 41 Engine 19 | . 20 20 20 15 8 Leg 3 | . . . 9 11 . Wheel 13 | . 14 20 10 4 8 Hover 2 | . 6 . . . . Device 37 | . 36 40 40 40 16 Energy Gun 5 | . 13 . . . . Ballistic Gun 1 | . 3 . . . . Launcher 11 | . 3 20 20 10 1 Naked Turns . | . . . . . . Heaviest Build 11 | 6 10 10 10 10 11 Greatest Support 20 | 10 16 10 20 20 16 Greatest Overweight (x) 2 | . 2 . . 1 . Average Overweight (x) . | . . . . . . Largest Inventory Capacity . | . . . . . . Average Capacity . | . . . . . . Most Carried . | . . . . . . Average Carried . | . . . . . . Final Capacity . | . . . . . . Final Carried . | . . . . . . Class Distribution -------------------- 95% | Mutant Dominant Class ---------------- Mutant | -10/Materials Mutant | -10/Mines Mutant | -10/Exiles Mutant | -9/Mines Assassin | -8/Materials Resources | -11 -10 -10 -10 -9 -8 ----------- Run | Scr Mat Min Exi Min Mat Matter Collected 1252 | 240 353 209 132 308 10 Remotely . | . . . . . . Salvage Created 2121 | 145 1068 201 147 361 199 Parts 126 | 12 76 13 7 14 4 Haulers Intercepted 2 | . 2 . . . . Recyclers Shooed . | . . . . . . Parts Field Recycled . | . . . . . . Retrieved Matter . | . . . . . . Parts Self-Destructed . | . . . . . . Prevented . | . . . . . . Kills | -11 -10 -10 -10 -9 -8 ------- Run | Scr Mat Min Exi Min Mat Combat Hostiles Destroyed 48 | . 20 12 3 10 3 Guns 18 | . 18 . . . . Cannons 5 | . . . . 5 . AOE 24 | . 2 12 3 5 2 Classes Destroyed 12 | 2 7 . 1 1 1 Worker 1 | . 1 . . . . Builder 2 | . 2 . . . . Tunneler 6 | 3 2 1 . . . Hauler 2 | . 2 . . . . Recycler 6 | 1 2 . . 3 . Operator 3 | . 3 . . . . Watcher 3 | . 3 . . . . Swarmer 10 | . 3 3 . 4 . Grunt 32 | . 17 9 2 3 1 Sentry 1 | . . . . . 1 Hunter 2 | . . . 1 . 1 Assembled 3 | . . . . 3 . Best Kill Streak 6 | 4 6 4 1 5 2 Combat Bots Only 5 | . 5 4 1 4 2 Max Kills in Single Turn 2 | 1 2 2 1 2 1 Gunslinging . | . . . . . . Exploded 2 | . 1 2 1 2 1 Melee . | . . . . . . Uniques/NPCs Destroyed . | . . . . . . Combat | -11 -10 -10 -10 -9 -8 -------- Run | Scr Mat Min Exi Min Mat Damage Taken 2292 | 10 1092 299 33 525 333 Core 1910 | 9 903 241 29 439 289 Absorbed by Shields . | . . . . . . Redirected to Core 1270 | 4 626 191 13 276 160 Core Remaining (%) 62 | 98 . . . 27 . Volleys Fired 337 | 12 246 25 21 31 2 Largest 1 | 1 1 1 1 1 1 Hottest 45 | 40 45 30 30 35 36 Shots Fired 337 | 12 246 25 21 31 2 Gun 241 | 12 229 . . . . Cannon 26 | . . . . 26 . Launcher 70 | . 17 25 21 5 2 Special . | . . . . . . Kinetic 44 | . 18 . . 26 . Thermal . | . . . . . . Explosive 68 | . 17 25 21 5 . Electromagnetic 225 | 12 211 . . . 2 Robot Hit Streak 11 | 3 11 4 5 4 3 Robot Miss Streak 4 | 2 3 2 2 4 . Penetration Max . | . . . . . . Secondary Targets . | . . . . . . Shots Hit Robots 123 | 7 72 12 8 18 6 Core Hits 112 | 5 44 24 15 22 2 Critical Hits 1 | . . . . 1 . Critical Kills . | . . . . . . Critical Parts Destroyed 1 | . . . . 1 . Melee Attacks 5 | . . . . . 5 Impact 5 | . . . . . 5 Slashing . | . . . . . . Piercing . | . . . . . . Sneak Attacks . | . . . . . . Combat Hostiles . | . . . . . . Follow-up Attacks . | . . . . . . Damage Inflicted 4467 | 150 1645 1050 664 707 251 Guns 1281 | 119 1162 . . . . Cannons 321 | . . . . 321 . Explosions 2723 | 31 483 1050 664 386 109 Melee 142 | . . . . . 142 Ramming . | . . . . . . Kinetic 423 | . 102 . . 321 . Thermal 509 | 31 431 47 . . . Explosive 2138 | . 52 1003 664 386 33 Electromagnetic 1255 | 119 1060 . . . 76 Impact 142 | . . . . . 142 Slashing . | . . . . . . Piercing . | . . . . . . Highest Corruption 2 | . 2 2 2 2 . Average Corruption 1 | . 1 2 2 2 . Corruption Purged . | . . . . . . Effects 46 | . 18 9 15 4 . Message Errors 20 | . 6 3 9 2 . Heat Flow Errors 3 | . . 2 . 1 . Energy Discharges 8 | . 4 2 1 1 . Data Loss (minor) 12 | . 6 2 4 . . Targeting Errors 3 | . 2 . 1 . . Overload Shots . | . . . . . . Overflow Damage 150 | . 29 34 33 22 32 Projectiles 22 | . . . . 22 . Explosions 96 | . 29 34 33 . . Melee 32 | . . . . . 32 Knockbacks 6 | . . . . 4 2 Impact 2 | . . . . . 2 Kinetic 4 | . . . . 4 . Secondary . | . . . . . . Self-Inflicted Damage 449 | 10 264 43 33 14 85 Shots 18 | 1 6 3 3 2 3 Rammed . | . . . . . . Targets Rammed . | . . . . . . Kicked . | . . . . . . Crushed . | . . . . . . Highest Temperature 183 | 12 100 183 . 119 7 Average Temperature 25 | 12 22 50 . 39 5 Received Heat Transfer 595 | . 348 90 . 121 36 Siege Activations . | . . . . . . Robots Corrupted . | . . . . . . Combat Hostiles . | . . . . . . Parts Fried 10 | . 8 . . . 2 Impact Corruptions 1 | . . . . . 1 Robots Melted . | . . . . . . Combat Hostiles . | . . . . . . Parts Melted 1 | . 1 . . . . Heat Transferred 450 | . 400 50 . . . Parts Sabotaged . | . . . . . . Parts Stolen . | . . . . . . Parts Stripped . | . . . . . . Power Chain Reactions 9 | 1 8 . . . . Missiles Intercepted . | . . . . . . Alert | -11 -10 -10 -10 -9 -8 ------- Run | Scr Mat Min Exi Min Mat Peak Influence 734 | 20 734 564 . 180 181 Initial 269 | . 13 269 . . 70 Average 372 | 9 434 441 . 107 105 Maximum Alert Level 3 | . 3 2 . . . Low Security (%) 22 | 100 7 . . 100 100 Level 1 31 | . 43 26 . . . Level 2 40 | . 40 73 . . . Level 3 5 | . 8 . . . . Level 4 . | . . . . . . Level 5 . | . . . . . . High Security . | . . . . . . Max Security . | . . . . . . Squads Dispatched 10 | . 9 1 . . . Investigation 8 | . 7 1 . . . Extermination . | . . . . . . Reinforcement 2 | . 2 . . . . Assault . | . . . . . . Garrison . | . . . . . . Intercept . | . . . . . . Construction Impeded . | . . . . . . Haulers Reinforced . | . . . . . . Stealth | -11 -10 -10 -10 -9 -8 --------- Run | Scr Mat Min Exi Min Mat Distress Signals 5 | . 3 . . 1 1 Communications Jammed . | . . . . . . Distress Signals . | . . . . . . Times Spotted 72 | . 39 11 . 16 6 Peak Tracking Total 9 | . 5 4 . 9 4 Tactical Retreats 6 | . 2 1 . 3 . Traps | -11 -10 -10 -10 -9 -8 ------- Run | Scr Mat Min Exi Min Mat Traps Triggered 4 | . 4 . . . . Indirectly . | . . . . . . Trap Hack Attempts . | . . . . . . Triggered . | . . . . . . Disarmed . | . . . . . . Reprogrammed . | . . . . . . Reused . | . . . . . . Traps Extracted . | . . . . . . Installed 5 | . . 5 . . . Triggered . | . . . . . . Machines | -11 -10 -10 -10 -9 -8 ---------- Run | Scr Mat Min Exi Min Mat Machines Disabled 58 | . 38 14 1 2 3 Max in Single Turn 3 | . 2 3 1 2 3 Machines Sabotaged . | . . . . . . Garrisons Compromised . | . . . . . . Overloaded Fab Kills . | . . . . . . Fab Network Shutdowns . | . . . . . . Hacking | -11 -10 -10 -10 -9 -8 --------- Run | Scr Mat Min Exi Min Mat Machines Accessed 12 | . 7 1 4 . . Terminals 7 | . 6 1 . . . Fabricators . | . . . . . . Repair Stations . | . . . . . . Recycling Units 1 | . 1 . . . . Scanalyzers . | . . . . . . Garrison Access . | . . . . . . Total Hacks 81 | . 27 5 49 . . Successful 60 | . 10 1 49 . . Failed 21 | . 17 4 . . . Catastrophic 4 | . 4 . . . . Database Lockouts . | . . . . . . Manual 32 | . 27 5 . . . Terminals 31 | . 26 5 . . . Fabricators . | . . . . . . Repair Stations . | . . . . . . Recycling Units 1 | . 1 . . . . Scanalyzers . | . . . . . . Garrison Access . | . . . . . . Terminal Hacks 51 | . 1 1 49 . . Record 49 | . . . 49 . . Branch Access Points 1 | . 1 . . . . Unreport Threat 1 | . . 1 . . . Fabricator Hacks . | . . . . . . Repair Station Hacks . | . . . . . . Recycling Unit Hacks . | . . . . . . Scanalyzer . | . . . . . . Garrison Access Hacks . | . . . . . . Unauthorized Hacks 9 | . 9 . . . . Terminals 8 | . 8 . . . . Track 1 | . 1 . . . . Assimilate 1 | . 1 . . . . Botnet 6 | . 6 . . . . Fabricators . | . . . . . . Repair Stations . | . . . . . . Recycling Units 1 | . 1 . . . . Tunnel 1 | . 1 . . . . Scanalyzers . | . . . . . . Garrison Access . | . . . . . . Data Cores Recovered . | . . . . . . Used . | . . . . . . Hacking Detections 7 | . 6 1 . . . Full Trace Events 7 | . 6 1 . . . Feedback Events 2 | . 2 . . . . Corruption 2 | . 2 . . . . Feedback Blocked . | . . . . . . Robot Schematics Acquired . | . . . . . . Robots Built . | . . . . . . Matter . | . . . . . . Time . | . . . . . . Total Robot Build Rating . | . . . . . . Part Schematics Acquired . | . . . . . . Parts Built . | . . . . . . Matter . | . . . . . . Time . | . . . . . . Total Part Build Rating . | . . . . . . Parts Repaired . | . . . . . . Time . | . . . . . . Parts Recycled . | . . . . . . Recycled Matter . | . . . . . . Retrieved Matter . | . . . . . . Retrieved Components . | . . . . . . Parts Scanalyzed . | . . . . . . Part Schematics Acquired . | . . . . . . Parts Damaged . | . . . . . . Bothacking | -11 -10 -10 -10 -9 -8 ------------ Run | Scr Mat Min Exi Min Mat Used RIF Installer . | . . . . . . Robots Hacked . | . . . . . . Non-combat . | . . . . . . Combat . | . . . . . . Robot Hacks Applied . | . . . . . . Relay Couplers Released . | . . . . . . Robots Rewired . | . . . . . . Allies Hacked . | . . . . . . Hacks Repelled . | . . . . . . Allies | -11 -10 -10 -10 -9 -8 -------- Run | Scr Mat Min Exi Min Mat Total Allies 5 | . . 2 . 3 . Largest Group 3 | . . 2 2 3 . Highest-Rated Group 42 | . . 42 42 40 . Highest-Rated Ally 31 | . . 31 31 16 . Total Orders . | . . . . . . Ally Attacks 17 | . . . . 17 . Total Damage 132 | . . . . 132 . Kills 3 | . . . . 3 . Allies Corrupted . | . . . . . . Allies Melted . | . . . . . . Intel | -11 -10 -10 -10 -9 -8 ------- Run | Scr Mat Min Exi Min Mat Robot Analysis Total . | . . . . . . Derelict Logs Recovered 4 | . . 3 . 1 . Drone Launches . | . . . . . . Drone Recoveries . | . . . . . . Exploration | -11 -10 -10 -10 -9 -8 ------------- Run | Scr Mat Min Exi Min Mat Turns Passed 5102 | 119 2130 767 1556 388 142 Spaces Moved 4366 | 94 1790 756 1319 299 108 Core 124 | 5 7 . . 112 . Treads . | . . . . . . Legs 625 | . . . 476 149 . Wheels 3012 | 89 1178 756 843 38 108 Hover 605 | . 605 . . . . Flight . | . . . . . . Fastest Speed 50 | 50 50 80 80 50 100 Average Speed 88 | 78 78 80 101 105 100 Slowest Speed 150 | 80 150 80 140 140 100 Overloaded Moves . | . . . . . . Propulsion Burnouts . | . . . . . . Robots Hopped . | . . . . . . Cave-ins Triggered . | . . . . . . Exploration Rate (%) 65 | 4 98 97 93 85 15 Regions Visited 5 Branch Regions 3 Pre-discovered Areas 3 | . 1 1 1 . . Known Exits Taken 1 | . 1 . . . . Unknown Exits Taken 4 | 1 . 1 1 1 . Scrap Searched 4 | . . 1 . 3 . Spaces Dug 47 | . 8 . 39 . . Terrain Destroyed 652 | 7 350 155 93 30 17 Melee . | . . . . . . Projectile . | . . . . . . AOE 652 | 7 350 155 93 30 17 Terrain Rammed . | . . . . . . Walls Destroyed . | . . . . . . Machines Disabled . | . . . . . . Actions | -11 -10 -10 -10 -9 -8 --------- Run | Scr Mat Min Exi Min Mat Total 5272 | 125 2274 892 1513 339 129 Wait 478 | 16 177 102 169 5 9 Move 4361 | 93 1789 755 1318 298 108 Hop . | . . . . . . Pick Up . | . . . . . . Fast Attach 23 | 4 12 . 1 3 3 Attach . | . . . . . . Detach . | . . . . . . Swap 5 | . 5 . . . . Drop 14 | . 9 . 1 2 2 Fire 337 | 12 246 25 21 31 2 Melee 5 | . . . . . 5 Ram . | . . . . . . Kick . | . . . . . . Crush . | . . . . . . Escape Stasis . | . . . . . . Rewire . | . . . . . . Trap 5 | . . 5 . . . Miscellaneous 44 | . 36 5 3 . . Route ------- -11/Scrapyard -10/Materials (discovered 4 exits: [*Mat x3] / *Min) -10/Mines (discovered 3 exits: [*Mat x2] / *Exi) -10/Exiles (discovered 2 exits: [*Min x2]) -9/Mines (discovered 2 exits: [*Mat x2]) -8/Materials History --------- Turn | Location | Event 9 | -11/Scrapyard | Discovered new exit (range 15) 120 | -11/Scrapyard | Entered Materials 157 | -10/Materials | Discovered new exit (range 7) 266 | -10/Materials | Core integrity fell below 50% 313 | -10/Materials | Build established: Mutant 384 | -10/Materials | Discovered new exit (range 8) 408 | -10/Materials | Discovered new exit (range 13) 432 | -10/Materials | Reached level 2 513 | -10/Materials | Discovered new exit (range 14) 627 | -10/Materials | Upgraded with Utility slot (x1) 1004 | -10/Materials | Identified exit to Mines 1072 | -10/Materials | Reached level 3 1582 | -10/Materials | Reached level 4 2250 | -10/Materials | Entered Mines 2252 | -10/Mines | Reached level 5 2302 | -10/Mines | Discovered new exit (range 14) 2366 | -10/Mines | Learned Materials terminal intel 2415 | -10/Mines | Reached level 6 2442 | -10/Mines | Learned 2 Materials zone layouts 2449 | -10/Mines | Found a hidden stash of uninstalled traps 2495 | -10/Mines | Deemed a non-threat by the Exiles lab entrance 2495 | -10/Mines | Discovered new exit (range 5) 2611 | -10/Mines | Discovered new exit (range 12) 2726 | -10/Mines | Learned location of Storage (-7) 3017 | -10/Mines | Entered Exiles 3017 | -10/Exiles | Found Exiles lab destroyed 3017 | -10/Exiles | Accompanied by 2 allies 3047 | -10/Exiles | Led the pair of lost Derelicts to a safe place 3087 | -10/Exiles | Discovered new exit (range 14) 3532 | -10/Exiles | Discovered new exit (range 12) 3836 | -10/Exiles | Learned location of Zion (-6) 4573 | -10/Exiles | Entered Mines 4577 | -9/Mines | Reached level 7 4755 | -9/Mines | Assembled infested the area 4786 | -9/Mines | Core integrity fell below 20% 4813 | -9/Mines | Assisted by bots powering up and referring to "LRC-V3" 4813 | -9/Mines | Learned Materials stockpile data 4857 | -9/Mines | Discovered new exit (range 14) 4868 | -9/Mines | Discovered new exit (range 13) 4961 | -9/Mines | Entered Materials 4962 | -8/Materials | Core integrity fell below 50% 4963 | -8/Materials | Reached level 8 4964 | -8/Materials | Loaded intel: 11 terminal locations 4965 | -8/Materials | Upgraded with Utility slot (x7) 5020 | -8/Materials | Core integrity fell below 20% 5103 | -8/Materials | Destroyed self via exploding Nuclear Reactor Last Messages --------------- 04986_ K-01 Serf collects debris. 04995_ R-06 Scavenger collects Lgt. Cannon. 05017_ H-55 Commando knocked back. 05019_ Penetrated by Slug. 05027_ Destroyed Carbon-fiber Leg. 05027_ H-55 Commando system corrupted by crushing effect. 05027_ H-55 Commando knocked back. 05028_ H-55 Commando system terminally corrupted. 05028_ Lgt. Nuclear Core fried. 05028_ Targeting Computer fried. 05031_ Acquired 10 matter. 05075_ W-25 Informer sends out distress signal. 05085_ Dropped Hvy. Flail. 05086_ Acquired Shock Bomb Launcher. 05091_ Acquired Adv. Targeting Computer. 05097_ G-47 Trooper destroyed. 05103_ Nuclear Reactor explodes. 05103_ Scanalyzer disabled. 05103_ Processing Tank disabled. 05103_ Y-45 Defender destroyed. Map ----- +----------------------------------------------------+ | | | | | | | ?????????????????????????????????????????????????? | | ?????????????????????????????????????????????????? | | ?????????????????????????????????????????????????? | | ?????????????????????????????????????????????????? | | ###########???##########?????????????????????????? | | # #???# #?????????????????????????? | | # #???# """ #?#???????????????????????? | | # """ #???# "R #???? ? ??????????????????? | | # """ ##### """ #?#?????? ??????????"T"???? | | # """ " " # ## #??#?? ?#??????????????? | | # "R" # ## """ ##?? ? ??? #??????????????? | | # """ + ## """ ###? ? ???? ????????????? | | # # ## """ #?## ? ? ???????????? | | ########### ## + ??? ? ???? ??????????? | | # ##+########??####?#???#? ?????????? | | """ + ?????####?##?? ??????????? | | """"" # #? ???##?# ??????????? | | """"" # ##+##### # ?#####? ?????????? | | """"" ## ## ## # """"" ###???? ?????????? | | """ ## ## ## + ?"""" ###??????????????? | | ## ## " ## # """ ??#????????????? | | ## ## """ ## ## #?##?? ????????? | | ######+#### ## "" ## #@ ####? ????????? | | ## ### # """ ## # ###?? ?????????? | | # # "" ## #%[ ###??? ????????? | | ! ? + # """ + #%[ ###?? ?#???????? | | # ### # """ ## !! ##?#???#???????? | | # ######## """ ## # #??#? ????????? | | ? # ######## " ## # #?##? ?#???????? | | ##?## ######## ## # "" ####? ?????????? | | ##### ############### #! #?#?? ????????? | | ??## =# #### ##############???#???????? | | ??## # """ #### ### ? # ??#???????? | | #### ! + """"" #### ### ?? ?? ?????? | | #?## # """"" + ### ? #?? ????????? | | #####+### """"" ######## # ? ? "?????? | | # / """ %######## ? ?? ? #???????? | | # # ######## # ?? ??????? | | # # = ##############+##### ??????????? | | # #########+######?###### #### ??#???"???? | | # """ ##?###### ############# ###? ?# ??????? | | # """"" ######### ### # ####? # ? ?? | | # """"" ######### + / #### ????##???? | | # """"" ############# # #?#??? ??"???# ? | | # """ ############# # #??? # "???#?? | | ???############################ ####? ?? ? # ? | | ###### ############ ^ ####???? ?? ?#?? | +----------------------------------------------------+ Best States ------------- Heat Dissipation 25 Energy Generation 10 Energy Capacity 250 Matter Stores 300 Matter Capacity 300 Sight Range 16 Terrain Scan Range 16 Terrain Scan Density 410 Evasion (%) 53 Targeting Accuracy 8 Item Schematics ----------------- None Robot Schematics ------------------ None Fabricated ------------ Nothing Alien Tech Used ----------------- None Achievements -------------- None Challenges ------------ None RPGLIKE | -11 -10 -10 -10 -9 -8 --------- Run | Scr Mat Min Exi Min Mat Levels Raised 7 | . 3 2 . 1 1 XP Earned 14753 | 3000 5832 2105 241 1450 2125 XP Spent 13320 | 50 890 . . 480 11900 Upgrades 20 | 1 4 . . 8 7 Utility Slot 8 | . 1 . . . 7 Core Integrity 8 | . . . . 8 . Terrain Scan Density 4 | 1 3 . . . . Protomatter Created 418 | . 326 67 13 12 . Integrity Restored 917 | . 758 120 39 . . Core 891 | . 732 120 39 . . Parts 26 | . 26 . . . . Protomatter Decayed 74 | . 72 . . 2 . Game ------ Seed ImprinterCentriumBay Manual? 0 Play Time 00:42:45 Cumulative 68.9 hours Start 2021.03.09 @ 10:40:11 End 2021.03.09 @ 14:09:24 Sessions 3 Manual Loads 0 Difficulty Rogue Special Mode Winter2019/RPGLIKE Game No. 23 Rogue 23 Adventurer 0 Explorer 0 Win Type - Total 4 Types 3/0/0/0/0/0/0/0/1 Lore% 38 Gallery% 51 Achievement% 53 Wizard Run 0 Options --------- ASCII 0 Keyboard 0 Movement Mouse Keybinds 0 Fullscreen 1 Font 18/SmallcapsGlow Map View 112x50 Tactical HUD 1 Map Filters NONE Filters NONE Steam 1 RUN: 2b5a4b6e-4653-4343-a67a-7543d073b8d5